[Event "Bangabandhu Premier Div League 2022"]
[Site "Dhaka"]
[Date "2022.12.07"]
[Round "8.10"]
[White "Iniyan, P."]
[Black "Chanda, Sandipan"]
[Result "1/2-1/2"]
[ECO "A87"]
[WhiteElo "2534"]
[BlackElo "2474"]
[Annotator "TA"]
[PlyCount "238"]
[EventDate "2022.11.30"]
[EventType "team-tourn"]
[EventCountry "BAN"]
[SourceTitle "playchess.com"]
[Source "ChessBase"]
[SourceQuality "1"]
[TimeControl "40/5400+30:1800+30"]

{[%evp 49,238,0,0,0,0,0,0,0,0,0,0,0,0,-1,0,0,0,0,0,0,-8,-307,-306,-305,-300,-288,-274,-265,-265,-243,-121,-121,-127,-126,-126,-127,-127,-126,-127,-165,-165,-166,-166,-177,-119,-124,-123,-118,0,0,0,0,0,0,0,0,0,-42,-33,0,-35,-43,-43,-43,-46,-46,-46,-46,-47,-52,-7,-7,-7,-8,0,0,0,0,0,0,0,0,0,-7,-7,-7,-7,-7,-7,-7,-7,-7,-7,-7,-7,-7,-7,-7,0,-7,-7,-7,-7,-7,-7,-8,-7,-8,-8,-8,-8,-8,-8,-8,-8,-8,-8,-8,-8,-8,-8,-8,-8,-8,-8,-8,-8,-8,-8,-8,-8,-8,-8,-8,-8,-8,-7,-8,-8,-8,-8,-8,-7,-7,-7,-8,-8,-8,-8,-8,0,0,0,0,0,0,0,-8,-8,-8,-8,-8,-8,-8,-8,-8,-8,-8,0,0,0,0,0,-8,0,0,0,0,0,0,0,0,0,0,0,0,0,0,0,0,0]} 1. d4 {[%emt 0:01:34]} f5 {[%emt 0:00:14]} 2. Nf3 {[%emt 0:00:06]} Nf6 {[%emt 0:00:06]} 3. g3 {[%emt 0:00:09]} g6 {[%emt 0:00:06]} 4. Bg2 {[%emt 0:00:05]} Bg7 {[%emt 0:00:05]} 5. O-O {[%emt 0:00:11]} O-O {[%emt 0:00:11]} 6. c4 {[%emt 0:00:03]} e6 {[%emt 0:00:10]} 7. Nc3 {[%emt 0:00:08]} d5 {[%emt 0:00:09]} 8. Bf4 {[%emt 0:00:23]} c6 {[%emt 0:00:07]} 9. Qc1 {[%emt 0:00:20]} Re8 {[%emt 0:00:08]} 10. Rd1 {[%emt 0:00:10]} Nbd7 {[%emt 0:00:06]} 11. Bd6 {[%emt 0:00:18]} Ne4 {[%emt 0:00:23]} 12. Nxe4 {[%emt 0:00:10]} fxe4 {[%emt 0:00:04]} 13. Ne5 {[%emt 0:00:09]} Bf8 {[%emt 0:00:09]} 14. c5 {[%emt 0:22:23]} Bxd6 {[%emt 0:00:26]} 15. cxd6 {[%emt 0:01:27]} Qb6 {[%emt 0:00:11]} 16. Qc3 {[%emt 0:29:03]} Nxe5 {[%emt 0:02:00]} 17. dxe5 {[%emt 0:00:42]} Rf8 {[%emt 0:00:09]} 18. e3 {[%emt 0:03:41]} Bd7 {[%emt 0:05:21]} 19. h4 {[%emt 0:06:04]} Rf7 {[%emt 0:02:36]} 20. Rd2 {[%emt 0:11:36]} g5 {[%emt 0:07:11]} 21. hxg5 {[%emt 0:03:57]} Qd8 {[%emt 0:00:09]} 22. Rf1 {[%emt 0:11:37]} Qxg5 {[%emt 0:00:14]} 23. f4 {[%emt 0:00:35]} exf3 {[%emt 0:03:41]} 24. Rxf3 {[%emt 0:00:17]} Rxf3 {[%emt 0:02:33]} 25. Bxf3 {[%emt 0:00:04]} Kh8 {[%emt 0:02:30]} 26. e4 {[%emt 0:01:50]} Qxg3+ {[%emt 0:10:13]} 27. Rg2 {[%emt 0:00:04]} Qf4 {[%emt 0:00:29]} 28. Rg4 {[%emt 0:03:22]} Qh6 {[%emt 0:05:33]} 29. Bg2 {[%emt 0:03:29]} Rf8 {[%emt 0:01:25]} 30. b4 {[%emt 0:00:34]} b6 {[%emt 0:10:20]} 31. a3 {[%emt 0:00:27]} d4 {[%emt 0:03:14]} 32. Qxd4 {[%emt 0:00:08]} Qc1+ {[%emt 0:00:05]} 33. Kh2 {[%emt 0:00:03]} c5 {[%emt 0:00:03]} 34. bxc5 {[%emt 0:00:58]} (34. Qg1 $5 {[%cal Rg1c1]} Qc3 35. Rg3 (35. bxc5 Qxe5+ 36. Rg3 Qh5+ 37. Rh3 Qe5+ 38. Rg3 Rg8 $11) 35... Qxe5 36. bxc5 $11) 34... bxc5 {[%emt 0:00:02]} 35. Qd3 $2 {[%emt 0:00:12][%mdl 8192]} (35. Qg1 $11 Qh6+ 36. Bh3) 35... c4 $1 $19 {[%emt 0:00:36]} 36. Qg3 {[%emt 0:01:35]} c3 {[%emt 0:00:19]} ({Weaker is} 36... Qd2 37. Rh4 Rf7 38. Rg4 $11) 37. Rh4 {[%emt 0:00:03] [#]} Rg8 $1 {[%emt 0:06:19]} 38. Qf4 {[%emt 0:00:52]} Qxf4+ {[%emt 0:00:36]} (38... Qxa3 $2 {leads to mate.} 39. Qf6+ Rg7 40. Rg4 h5 41. Qxg7#) 39. Rxf4 {[%emt 0:00:02]} Bb5 {[%emt 0:00:22]} (39... Rc8 $19 {is more deadly.} 40. Rf1 c2) 40. Rf2 $17 {[%emt 0:01:05]} Rc8 {[%emt 0:03:40]} 41. Rc2 {[%emt 0:02:38] [#]} Ba4 $1 {[%emt 0:01:52]} 42. Rc1 {[%emt 0:00:08]} c2 {[%emt 0:01:04]} 43. Bh3 {[%emt 0:01:07]} Bd7 {[%emt 0:03:04]} 44. Bg4 {[%emt 0:04:45]} Kg7 {[%emt 0:06:24]} 45. Be2 {[%emt 0:10:16]} Rc3 {[%emt 0:06:45]} 46. Kg2 {[%emt 0:00:07]} h5 {[%emt 0:12:49]} ({Don't do} 46... Rxa3 47. Rxc2 Kh6 48. Rc7 $18) (46... Kg6 $19 {[%cal Og6g5] aiming for ...Kg5!} 47. Kf1 Kg5) 47. Bxh5 $17 {[%emt 0:06:11]} Kh6 $1 {[%emt 0:00:05]} 48. Bf7 {[%emt 0:01:07]} Rc8 {[%emt 0:00:21]} (48... Rxa3 $2 49. Rxc2 Kg5 50. Rc7 $18) (48... Kg5 $17 {Strongly threatening ...Kf4.} 49. Kf2 Kf4) 49. Kf3 $11 {[%emt 0:02:13]} Rf8 {[%emt 0:00:26]} (49... Kg7 $5 50. Bh5 $8 Kh6 $11) 50. Rxc2 {[%emt 0:00:12]} Rxf7+ {[%emt 0:00:04]} 51. Ke3 {[%emt 0:00:06]} Kg7 {[%emt 0:01:26]} 52. Kd4 {[%emt 0:01:16]} Kf8 {[%emt 0:01:06]} 53. Rh2 {[%emt 0:01:17]} Ke8 {[%emt 0:00:24]} 54. Rh8+ {[%emt 0:01:33]} Rf8 {[%emt 0:00:01]} 55. Rh7 {[%emt 0:00:14]} Kd8 {[%emt 0:00:05]} 56. a4 $1 {[%emt 0:01:29]} a5 {[%emt 0:03:04]} 57. Kc5 $1 {[%emt 0:00:39]} Rf4 {[%emt 0:00:50]} 58. Rh8+ {[%emt 0:00:10]} Be8 {[%emt 0:00:01]} 59. Rh6 {[%emt 0:02:22]} Rxe4 {[%emt 0:07:17]} (59... Kd7 $5 {[%cal Rf4e4]} 60. Kd4 Rg4 61. Rh7+ Kd8 $17) 60. Rxe6 {[%emt 0:00:04]} Bxa4 {[%emt 0:00:20]} 61. Kd5 {[%emt 0:00:59]} (61. Re7 {is interesting.} Bd7 62. Kd5 Rh4 63. e6) 61... Rb4 {[%emt 0:08:48]} 62. Re7 {[%emt 0:01:18]} Bb3+ {[%emt 0:00:14]} 63. Kc6 $1 {[%emt 0:00:41]} a4 {[%emt 0:04:53]} 64. e6 $1 {[%emt 0:00:55]} a3 {[%emt 0:02:34]} 65. Rd7+ {[%emt 0:00:15]} Kc8 {[%emt 0:00:16]} 66. Ra7 {[%emt 0:00:45]} Bxe6 {[%emt 0:06:44]} 67. Ra8+ {[%emt 0:00:05]} Rb8 {[%emt 0:00:03]} 68. Rxa3 {[%emt 0:00:04]} Bd7+ {[%emt 0:00:05]} 69. Kc5 {[%emt 0:00:10]} Rb5+ {[%emt 0:00:02]} 70. Kc4 {[%emt 0:00:13]} Rh5 {[%emt 0:00:07]} 71. Ra7 {[%emt 0:00:17]} Be6+ {[%emt 0:00:12]} 72. Kd4 {[%emt 0:00:28]} Rd5+ {[%emt 0:00:04]} 73. Ke4 {[%emt 0:00:04]} Rh5 {[%emt 0:00:30]} 74. d7+ {[%emt 0:00:13]} Kd8 {[%emt 0:00:05]} 75. Ra8+ {[%emt 0:00:05]} (75. Ra6 {is more complex.} Bh3 76. Ra7 Rb5 77. Kf3) 75... Kxd7 {[%emt 0:00:02]} 76. Ra7+ {[%emt 0:00:05]} Kd6 {[%emt 0:00:04]} 77. Ra6+ {[%emt 0:00:07]} Ke7 {[%emt 0:00:04]} 78. Ra7+ {[%emt 0:00:15]} Kf6 {[%emt 0:00:03]} 79. Kd4 {[%emt 0:01:06]} Rh4+ {[%emt 0:00:04]} 80. Ke3 {[%emt 0:00:07]} Ke5 {[%emt 0:00:03]} 81. Ra8 {[%emt 0:00:15]} Rh3+ {[%emt 0:00:09]} 82. Kd2 {[%emt 0:00:08]} Kd4 {[%emt 0:00:05]} 83. Rd8+ {[%emt 0:00:04]} Bd5 {[%emt 0:00:03]} 84. Rd7 {[%emt 0:00:11]} Rh2+ {[%emt 0:00:07]} 85. Kd1 {[%emt 0:00:05]} Ke4 {[%emt 0:00:07]} 86. Kc1 {[%emt 0:00:02]} Bc4 {[%emt 0:00:03]} 87. Rd2 $1 {[%emt 0:00:07]} Rh3 {[%emt 0:00:07]} 88. Kb2 {[%emt 0:00:37]} Bd3 {[%emt 0:00:36]} 89. Kc3 $1 {[%emt 0:00:09]} Rg3 {[%emt 0:00:14]} 90. Rh2 {[%emt 0:00:24]} Ke3 {[%emt 0:00:07]} 91. Rh8 {[%emt 0:00:45]} Be4 {[%emt 0:00:05]} 92. Kc4 {[%emt 0:00:12]} Rf3 {[%emt 0:01:12]} 93. Rh4 {[%emt 0:00:18]} Rf1 {[%emt 0:00:36]} 94. Rh3+ {[%emt 0:00:05]} Bf3 {[%emt 0:00:04]} 95. Kc5 {[%emt 0:00:11]} Rc1+ {[%emt 0:00:09]} 96. Kd6 {[%emt 0:00:04]} Kf4 {[%emt 0:00:07]} 97. Rh2 {[%emt 0:00:48]} Rc6+ {[%emt 0:00:14]} 98. Kd7 {[%emt 0:00:04]} Ra6 {[%emt 0:00:49]} 99. Rf2 {[%emt 0:00:11]} Ke4 {[%emt 0:00:07]} 100. Rf1 {[%emt 0:00:13]} Bg4+ {[%emt 0:00:05]} (100... Kd5 $5) 101. Ke7 {[%emt 0:00:13]} Bf5 {[%emt 0:00:10]} 102. Re1+ {[%emt 0:00:06]} Kd5 {[%emt 0:00:06]} 103. Rd1+ {[%emt 0:00:03]} Ke5 {[%emt 0:00:03]} 104. Re1+ {[%emt 0:00:05]} Be4 {[%emt 0:00:03]} 105. Re2 {[%emt 0:00:05]} Ra7+ {[%emt 0:00:21]} 106. Ke8 {[%emt 0:00:05]} Kd5 {[%emt 0:00:50]} 107. Kf8 {[%emt 0:00:06]} Bf5 {[%emt 0:00:37]} 108. Re7 {[%emt 0:00:05]} Ra6 {[%emt 0:00:04]} 109. Kg7 {[%emt 0:00:11]} Rg6+ {[%emt 0:00:37]} 110. Kf7 {[%emt 0:00:12]} Rh6 {[%emt 0:00:03]} 111. Kg7 {[%emt 0:01:34]} Rh5 {[%emt 0:00:13]} 112. Kf6 {[%emt 0:00:29]} Be6 {[%emt 0:00:06]} 113. Ra7 {[%emt 0:00:06]} Rf5+ {[%emt 0:00:47]} 114. Kg6 {[%emt 0:00:05]} Rf1 {[%emt 0:00:26]} 115. Ra5+ {[%emt 0:00:09]} Kd6 {[%emt 0:00:03]} 116. Kg5 {[%emt 0:00:21]} Bd5 {[%emt 0:00:13]} 117. Ra6+ {[%emt 0:00:06]} Ke5 {[%emt 0:00:04]} 118. Ra5 {[%emt 0:00:04]} Rg1+ {[%emt 0:00:19]} 119. Kh5 {[%emt 0:00:05]} Ke4 {[%emt 0:00:55]} 1/2-1/2

[Event "Bangabandhu Premier Div League 2022"]
[Site "Dhaka"]
[Date "2022.12.07"]
[Round "8.11"]
[White "Harsha Bharathakoti"]
[Black "Reefat, Bin-Sattar"]
[Result "1-0"]
[ECO "A40"]
[WhiteElo "2582"]
[BlackElo "2367"]
[Annotator "TA"]
[PlyCount "67"]
[EventDate "2022.11.30"]
[EventType "team-tourn"]
[EventCountry "BAN"]
[SourceTitle "playchess.com"]
[Source "ChessBase"]
[SourceQuality "1"]
[TimeControl "40/5400+30:1800+30"]

{[%evp 9,67,50,60,55,47,54,54,64,54,54,50,50,74,70,70,12,12,12,12,20,19,29,119,97,119,128,144,136,147,110,108,78,96,64,61,62,105,52,73,55,258,249,291,191,193,162,245,253,241,226,240,250,247,250,199,197,243,236,766,749]} 1. d4 {[%emt 0:00:04]} e6 {[%emt 0:19:05]} 2. c4 {[%emt 0:00:59]} b6 {[%emt 0:00:03]} 3. a3 {[%emt 0:02:37]} Bb7 {[%emt 1:12:52]} 4. Nc3 {[%emt 0:00:04]} g6 {[%emt 0:00:00]} 5. e4 {[%emt 0:02:15]} Bg7 {[%emt 0:00:00]} 6. Nf3 {[%emt 0:01:55] A40: Unusual replies to 1 d4.} Ne7 {[%emt 0:00:00]} 7. h4 {[%emt 0:00:39]} h6 {[%emt 0:00:00]} 8. Be3 {[%emt 0:00:08] White is slightly better.} d6 {[%emt 0:00:00]} 9. Qd2 {[%emt 0:04:22]} Nd7 {[%emt 0:00:00] [#]} 10. Bd3 $146 {[%emt 0:01:50]} ({Predecessor:} 10. d5 e5 11. h5 f5 12. g3 g5 13. Qc2 O-O 14. O-O-O f4 15. gxf4 exf4 16. Bd4 {0-1 (50) Maletin,P (2571)-Riazantsev,A (2684) Rostov on Don 2014}) 10... a6 {[%emt 0:00:00]} 11. d5 {[%emt 0:10:08]} Nf6 {[%emt 0:00:00]} 12. dxe6 {[%emt 0:17:36]} ({White should try} 12. Nd4 $14) 12... fxe6 $11 {[%emt 0:00:00]} 13. Nd4 {[%emt 0:00:08][%cal Bf3d4,Bd4e2,Be2f4][%mdl 32]} Qd7 {[%emt 0:00:00]} 14. f3 {[%emt 0:00:13] Against Ng4} c5 {[%emt 0:00:00]} 15. Nde2 {[%emt 0:00:59]} Bc6 {[%emt 0:00:00]} (15... O-O-O $11 {remains equal.}) 16. b4 $16 {[%emt 0:11:28]} Rd8 {[%emt 0:00:35]} 17. Rd1 {[%emt 0:06:31]} Qc8 {[%emt 0:02:43] [#]} 18. O-O $1 {[%emt 0:04:29]} h5 {[%emt 0:01:54]} 19. Qe1 {[%emt 0:12:25]} O-O {[%emt 0:00:35]} 20. Nf4 {[%emt 0:01:39]} Be8 {[%emt 0:00:38]} 21. Rb1 {[%emt 0:10:34]} Bf7 {[%emt 0:01:58]} 22. Qg3 {[%emt 0:03:29]} cxb4 {[%emt 0:00:24]} 23. axb4 {[%emt 0:01:29]} (23. Rxb4 $16 {Strongly threatening Na4.} Nd7 24. Na4) 23... b5 {[%emt 0:00:03] [#] Prevents Na4.} 24. c5 $1 {[%emt 0:00:41][%cal Oe4e5] White has more active pieces.} d5 $2 {[%emt 0:01:03] Black cannot hold the game after this.} (24... Rfe8 $1 $14) 25. exd5 $18 {[%emt 0:00:41]} exd5 {[%emt 0:00:22]} 26. Nce2 {[%emt 0:01:18][%cal Rf4g6]} ({And not} 26. Bxg6 d4 27. Bd2 (27. Bxf7+ $2 Rxf7 28. Bd2 dxc3 $17) 27... Nxg6 28. Nxg6 Bxg6 29. Qxg6 dxc3 30. Bxc3 a5 $17) 26... d4 {[%emt 0:00:21]} 27. Bxd4 {[%emt 0:02:23]} ({Weaker is} 27. Nxd4 Nfd5 28. Nxd5 (28. Nxg6 $2 {too greedy.} Bxg6 29. Bxg6 Nxe3 $19) 28... Rxd5 $17) 27... Nf5 {[%emt 0:00:18]} (27... Rxd4 $142 28. Nxd4 Nfd5) 28. Bxf5 {[%emt 0:00:04]} Qxf5 {[%emt 0:00:01]} 29. Qg5 {[%emt 0:03:07] Prevents Bh6.} Qxg5 {[%emt 0:01:17]} 30. hxg5 {[%emt 0:00:02]} Nh7 {[%emt 0:00:39]} 31. Bxg7 {[%emt 0:00:04]} Kxg7 {[%emt 0:00:04]} 32. Ra1 {[%emt 0:00:02]} Nxg5 {[%emt 0:00:23]} 33. Rxa6 {[%emt 0:00:09]} Bc4 $2 {[%emt 0:00:02]} (33... Rd2 34. Rc1 h4) 34. Rxg6+ {[%emt 0:00:05] Weighted Error Value: White=0.15 (very precise) /Black=0.24 (precise)} 1-0

[Event "Bangabandhu Premier Div League 2022"]
[Site "Dhaka"]
[Date "2022.12.08"]
[Round "9.1"]
[White "Abu Sufian, Shakil"]
[Black "Masum, Hossain"]
[Result "1-0"]
[ECO "B30"]
[WhiteElo "2229"]
[BlackElo "2103"]
[Annotator "TA"]
[PlyCount "37"]
[EventDate "2022.11.30"]
[EventType "team-tourn"]
[EventCountry "BAN"]
[SourceTitle "playchess.com"]
[Source "ChessBase"]
[SourceQuality "1"]
[TimeControl "40/5400+30:1800+30"]

{[%evp 10,37,25,20,34,24,31,-8,108,93,102,91,114,105,122,77,144,141,231,227,354,341,345,349,332,318,489,491,979,963]} 1. e4 {[%emt 0:00:03]} c5 {[%emt 0:00:01]} 2. Nf3 {[%emt 0:00:07]} Nc6 {[%emt 0:00:06]} 3. Bb5 {[%emt 0:01:10]} e6 {[%emt 0:00:15]} 4. O-O {[%emt 0:00:11]} Nge7 {[%emt 0:00:02]} 5. Re1 {[%emt 0:00:13]} a6 {[%emt 0:02:18]} 6. Bf1 {[%emt 0:02:12]} b5 {[%emt 0:00:33] B30: Sicilian: 2...Nc6 3 Bb5, lines without ...g6.} 7. c3 {[%emt 0:00:33]} d5 {[%emt 0:00:35]} 8. e5 {[%emt 0:01:08] [#]} f6 $146 {[%emt 0:21:44]} (8... d4 $11 {keeps the balance.}) ({Predecessor:} 8... Qb6 9. d3 Bd7 10. Bf4 Ng6 11. Bg3 Be7 12. Nbd2 h5 13. h3 h4 14. Bh2 c4 {1-0 (35) Aaron,M (2295)-Chan,P Auckland 1977}) 9. exf6 $16 {[%emt 0:04:25]} gxf6 {[%emt 0:00:01]} 10. d4 {[%emt 0:00:10] Inhibits e5.} c4 {[%emt 0:03:24]} 11. Nh4 {[%emt 0:03:21]} h5 {[%emt 0:06:45]} 12. Bf4 {[%emt 0:01:19] Prevents e5.} Bg7 {[%emt 0:00:37]} (12... e5 $142) 13. Be2 {[%emt 0:02:32] White is more active.} e5 {[%emt 0:05:30]} (13... Qd7 $16) 14. Bxh5+ $18 {[%emt 0:03:08]} Kf8 {[%emt 0:23:56]} (14... Kd7 {was called for.}) 15. dxe5 {[%emt 0:01:12]} fxe5 {[%emt 0:01:05]} 16. Bg5 {[%emt 0:00:19] [#] Threatens to win with Qf3+.} Kg8 {[%emt 0:05:26]} 17. Ng6 {[%emt 0:01:34] Chess con chili.} ({Weaker is} 17. Qf3 Qf8 $18) 17... Rxh5 {[%emt 0:10:57]} (17... Be6 $142 18. Nxh8 Kxh8) 18. Qxh5 {[%emt 0:00:49]} e4 {[%emt 0:07:21]} (18... Qd7 $142 19. Bxe7 Nxe7 20. Nxe5 Qf5 21. Qe8+ Qf8 22. Qxf8+ Bxf8) 19. Nxe7+ {[%emt 0:01:13] Weighted Error Value: White=0.08 (flawless) /Black=0.72} 1-0

[Event "Bangabandhu Premier Div League 2022"]
[Site "Dhaka"]
[Date "2022.12.08"]
[Round "9.1"]
[White "Anata, Choudhury"]
[Black "Hossain, Enamul"]
[Result "0-1"]
[ECO "B48"]
[WhiteElo "2176"]
[BlackElo "2392"]
[Annotator "TA"]
[PlyCount "130"]
[EventDate "2022.12.01"]
[EventCountry "BAN"]
[SourceTitle "playchess.com"]
[Source "ChessBase"]
[SourceQuality "1"]
[TimeControl "40/5400+30:1800+30"]

{[%evp 14,130,33,25,31,17,24,19,41,40,48,-7,12,20,16,8,50,8,19,0,29,4,0,0,9,-59,-56,-101,-110,-113,-94,-107,-8,-36,-26,-50,-38,-38,-19,-25,-23,-25,-20,-30,-19,-20,-25,-49,-49,-49,-49,-49,-49,-49,-49,-88,-88,-88,-88,-82,-81,-88,-88,-88,-88,-88,-88,-88,-88,-95,-88,-95,-95,-95,-95,-95,-95,-95,-95,-95,-95,-95,-95,-95,-95,-159,-96,-172,-172,-165,-172,-172,-172,-172,-172,-148,-132,-270,-270,-270,-262,-262,-256,-29982,-29983,-29992,-29993,-29993,-29994,-29994,-29989,-29988,-29989,-29990,-29990,-29990,-29978,-29979,-29980]} 1. e4 {[%emt 0:00:07]} c5 {[%emt 0:00:37]} 2. Nf3 {[%emt 0:00:13]} e6 {[%emt 0:00:16]} 3. d4 {[%emt 0:00:11]} cxd4 {[%emt 0:00:11]} 4. Nxd4 {[%emt 0:00:09]} Nc6 {[%emt 0:00:11]} 5. Nc3 {[%emt 0:00:13]} Qc7 {[%emt 0:00:21]} 6. Be3 {[%emt 0:00:17]} a6 {[%emt 0:00:09]} 7. a3 {[%emt 0:00:18] 7.g4 is a critical line.} b5 {[%emt 0:00:55]} 8. Nxc6 {[%emt 0:00:21]} Qxc6 {[%emt 0:00:24] B48: Sicilian: Taimanov: 5 Nc3 Qc7 6 Be3 a6 without Be2.} 9. Bd3 {[%emt 0:00:32]} Bb7 {[%emt 0:00:36]} 10. Qd2 {[%emt 0:00:21]} Rc8 {[%emt 0:01:40] The position is equal.} 11. f3 {[%emt 0:01:11]} Qc7 {[%emt 0:07:55] [#]} 12. O-O-O $146 {[%emt 1:32:37]} (12. a4 $14 b4 13. Na2) ({Predecessor:} 12. Bf4 e5 13. Bg3 Nf6 14. Qg5 d6 15. f4 exf4 16. Bxf4 Be7 17. Qxg7 Rg8 18. Qh6 Rxg2 {1-0 (24) Sukovic,A (2318)-Pobor,M (2266) Cetinje 2022}) 12... Nf6 {[%emt 0:03:04]} (12... b4 {feels hotter.} 13. Nb1 bxa3 14. Nxa3 Bxa3 15. bxa3 Ne7) 13. Bf4 {[%emt 0:00:00] Inhibits b4.} e5 {[%emt 0:03:53]} 14. Bg3 {[%emt 0:00:00]} d6 {[%emt 0:06:12]} 15. f4 {[%emt 0:00:00][%cal Oc3d5]} (15. Bh4 $5) 15... Be7 {[%emt 0:04:18][%cal Bf8e7,Be7f6,Bf6e5][%mdl 32]} 16. Rhf1 {[%emt 0:00:00]} Nh5 {[%emt 1:07:48]} 17. Qe2 {[%emt 0:00:00]} Nxf4 {[%emt 0:00:00]} 18. Bxf4 {[%emt 0:00:00]} exf4 {[%emt 0:00:00]} 19. Qg4 {[%emt 0:00:00]} (19. Kb1 $11) 19... Bf6 $15 {[%emt 0:00:00]} 20. Nd5 {[%emt 0:00:00]} Bxd5 {[%emt 0:00:00]} 21. exd5 {[%emt 0:00:00]} Be5 {[%emt 0:00:00]} 22. g3 {[%emt 0:00:00]} f3 {[%emt 0:00:00]} (22... fxg3 $17 23. hxg3 g6) 23. Rxf3 {[%emt 0:00:00]} O-O {[%emt 0:00:00]} 24. Qh4 {[%emt 0:00:00][%csl Gd3][%cal Rh4h7]} g6 {[%emt 0:00:00]} 25. g4 {[%emt 0:06:30]} Qd8 {[%emt 0:04:30]} (25... f6 {simplifies} 26. Kb1 Qb7 27. Qe1 Rb8) 26. g5 {[%emt 0:00:00]} (26. Qxd8 {simplifies} Rfxd8 27. h3 Rc5 28. Bf1) 26... f5 {[%emt 0:00:00]} 27. gxf6 {[%emt 0:01:00]} Rxf6 {[%emt 0:01:00]} 28. Rxf6 {[%emt 0:00:30]} Qxf6 {[%emt 0:00:30]} 29. Qxf6 {[%emt 0:00:00]} Bxf6 $11 {[%emt 0:00:00][%mdl 4096] Endgame KRB-KRB} 30. a4 {[%emt 0:00:00]} bxa4 {[%emt 0:00:00]} 31. Bxa6 {[%emt 0:00:00]} Rb8 {[%emt 0:00:00]} 32. c3 {[%emt 0:00:00] Inhibits a3.} a3 {[%emt 0:00:00]} 33. bxa3 {[%emt 0:02:30]} Ra8 {[%emt 0:00:00] Against a4} 34. Bb5 {[%emt 0:00:00]} Rxa3 {[%emt 0:00:00]} 35. Rd3 {[%emt 0:00:00]} Bxc3 {[%emt 0:00:00]} 36. Kc2 {[%emt 0:00:00]} Ra5 {[%emt 0:00:00] ...Be5 is the strong threat.} 37. Bd7 {[%emt 0:00:00]} Be5 {[%emt 0:00:00]} 38. Be6+ {[%emt 0:00:00]} Kg7 {[%emt 0:05:00] aiming for ...Ra2+.} 39. h3 {[%emt 0:03:00]} Ra2+ {[%emt 0:00:30]} 40. Kd1 {[%emt 0:00:30]} Kf6 {[%emt 0:00:00]} 41. Rd2 Ra3 {[%emt 0:31:00]} 42. Ke2 {[%emt 0:31:00]} Kg5 {[%emt 0:00:00] Black is more active.} 43. Rd3 Ra2+ {[%emt 0:00:00]} 44. Rd2 Ra4 {[%emt 0:01:30]} 45. Kf3 {[%emt 0:01:30]} Kh4 {[%emt 0:00:30]} 46. Re2 {[%emt 0:00:30]} Rf4+ {[%emt 0:00:30]} 47. Kg2 {[%emt 0:00:30]} h5 {[%emt 0:00:00][%cal Bh7h5,Bh5g4,Bg4g3][%mdl 32]} 48. Rf2 Rd4 {[%emt 0:01:00]} 49. Re2 {[%emt 0:01:00]} (49. Rf7 $142) 49... Bf4 {[%emt 0:00:30]} (49... g5 $142 50. Ra2 g4 51. hxg4 hxg4) 50. Rf2 {[%emt 0:00:30]} (50. Ra2 $17) 50... g5 $19 {[%emt 0:00:00]} 51. Rf3 {[%emt 0:00:30]} g4 {[%emt 0:00:00]} 52. hxg4 hxg4 {[%emt 0:00:00]} 53. Rf2 {[%emt 0:01:00]} g3 {[%emt 0:00:00]} 54. Re2 Kg5 {[%emt 0:00:00]} 55. Bg8 {This costs White the game.} (55. Kf3 $17 {is a better defense.}) 55... Rd3 $1 {[%emt 0:00:00]} 56. Be6 Be5 {[%emt 0:00:00]} 57. Rc2 {[%emt 0:00:00] [#]} Kf4 $1 {[%emt 0:00:00] ( -> ...Rd1)} 58. Kh3 $2 {[#]} (58. Bf7 $19) 58... Rd1 $1 {[%emt 0:00:00] Black mates.} 59. Rc8 {[%emt 0:00:00]} Rh1+ 60. Kg2 {[%emt 0:00:00]} Rh2+ 61. Kf1 {[%emt 0:00:00]} Kf3 {[%emt 0:00:00][%cal Rh2h1]} 62. Rf8+ {[%emt 0:00:00]} Bf4 {[%emt 0:00:00][%cal Rh2h1]} 63. Kg1 {[%emt 0:00:00]} Ra2 {[%emt 0:00:00][%cal Ra2a1]} 64. Bh3 {[%emt 0:00:00]} Ra1+ {[%emt 0:00:00]} 65. Bf1 {[%emt 0:00:00]} Rd1 {[%emt 0:00:00] Weighted Error Value: White=0.29 (precise) /Black=0.07 (flawless)} 0-1